bitfinex-derivatives/quotes_BNBF0:USTF0_20250303
["timestamp","ask_amount","ask_price","bid_price","bid_amount"]
[1740985956685,0.813,602.14,601.48,0.26904369]
[1740985956888,0.813,602.14,601.49,0.26904369]
[1740985957180,0.813,602.14,601.5,0.26904369]
[1740985957385,0.813,602.14,601.51,0.26904369]
[1740985957580,0.813,602.14,601.45,0.33252971]
[1740985957786,0.813,602.14,601.46,0.26887121]
[1740985957987,0.813,602.14,601.45,0.33252971]
[1740985957988,0.813,602.14,601.75,1.22377719]
[1740985958286,0.813,602.14,601.76,0.26887121]
[1740985958484,0.813,602.14,601.77,0.26887121]
[1740985958682,0.813,602.14,601.78,0.26887121]
[1740985958884,0.813,602.14,601.79,0.26887121]
[1740985959192,0.813,602.14,601.8,0.26887121]
[1740985959387,0.813,602.14,601.76,0.26887121]
[1740985959590,0.813,602.14,601.77,0.26887121]
[1740985959786,0.813,602.14,601.76,0.26887121]
[1740985961490,0.813,602.14,601.77,0.26887121]
[1740985961687,0.813,602.14,601.78,0.26887121]
[1740985961890,0.813,602.14,601.79,0.60121305]
[1740985962090,0.813,602.14,601.8,0.26887121]
[1740985962287,0.813,602.14,601.81,0.26887121]
[1740985962488,0.813,602.14,601.79,0.33234184]
[1740985962489,0.813,602.14,601.82,0.26887121]
[1740985962884,0.813,602.14,601.8,0.26887121]
[1740985963190,0.813,602.14,601.81,0.26887121]
[1740985963490,0.813,602.14,601.82,0.60119648]
[1740985963684,0.813,602.14,601.83,0.60119096]
[1740985963885,0.813,602.14,601.84,0.60118544]
[1740985964090,0.813,602.14,599.5,1.40976717]
[1740985964091,0.813,602.14,601.93,1.22377719]
[1740985964291,0.813,602.14,601.94,0.60111534]
[1740985964487,0.813,602.14,601.95,0.60110982]
[1740985964691,0.813,602.14,601.96,0.6011043]
[1740985964892,0.813,602.14,601.97,0.26885632]
[1740985965090,0.813,602.14,601.96,0.33224798]
[1740985965091,0.813,602.14,601.98,0.60109327]
[1740985965285,0.813,602.14,601.99,0.26885632]
[1740985965493,0.813,602.14,602.0,0.26885632]
[1740985965691,0.813,602.14,602.01,0.26885632]
[1740985965893,0.813,602.14,602.02,0.26885632]
[1740985966089,0.813,602.14,602.03,0.26885632]
[1740985966294,0.813,602.14,602.04,0.26885632]
[1740985966495,0.813,602.14,602.05,0.26885632]
[1740985966692,0.813,602.14,602.06,0.26885632]
[1740985966893,0.813,602.14,602.07,0.26885632]
[1740985967095,0.813,602.14,602.08,0.26885632]
[1740985967292,0.813,602.14,601.98,0.33223695]
[1740985967491,0.813,602.14,601.99,0.26882711]
[1740985967689,0.813,602.14,602.0,0.26882711]
[1740985967890,0.813,602.14,602.01,0.26882711]
[1740985968094,0.813,602.14,602.02,0.26882711]
[1740985968290,0.813,602.14,602.03,0.26882711]
[1740985968489,0.813,602.14,602.04,0.26882711]
[1740985968794,0.813,602.14,602.05,0.60102543]
[1740985969004,0.45051914,602.14,602.06,0.60101991]
[1740985969199,0.45051914,602.14,602.07,0.60101439]
[1740985969398,0.45051914,602.14,602.04,1.22377719]
[1740985969399,0.45051914,602.14,602.08,0.60100887]
[1740985969699,0.45051914,602.14,602.09,0.60100336]
[1740985969893,0.45051914,602.14,602.1,0.26882711]
[1740985970095,0.45051914,602.14,602.11,0.33216521]
[1740985970293,0.45051914,602.14,602.12,0.26882711]
[1740985970599,0.45051914,602.14,602.13,0.26882711]
[1740985971499,0.45051914,602.14,602.11,0.33216521]
[1740985971696,0.45051914,602.14,602.12,0.2689292]
[1740985971896,0.45051914,602.14,602.13,0.2689292]
[1740985972300,0.45051914,602.14,602.11,0.33216521]
[1740985972501,0.45051914,602.14,602.12,0.26894678]
[1740985972701,0.45051914,602.14,602.13,0.26894678]
[1740985975106,0.842,602.15,602.13,0.26894678]
[1740985975305,0.842,602.15,602.14,0.26894678]
[1740985975501,0.842,602.15,602.11,0.33216521]
[1740985975705,0.842,602.15,602.12,0.26893062]
[1740985975908,0.842,602.15,602.13,0.6010848]
[1740985976207,0.842,602.15,602.14,0.60107928]
[1740985977205,0.842,602.15,602.14,0.33214866]
[1740985977410,0.842,602.15,602.14,0.60107379]
[1740985985012,0.842,602.15,602.14,0.33214866]
[1740985985212,0.842,602.15,602.14,0.60116107]
[1740985988517,0.842,602.15,602.14,0.60111701]
[1740985989020,0.842,602.15,602.14,1.52030909]
[1740985994820,0.842,602.15,602.14,1.25134074]
[1740985995020,0.842,602.15,602.14,1.52030658]
[1740985995420,0.842,602.15,602.14,0.6011145]
[1740985999530,0.842,602.15,602.14,1.5224114]
[1740986001427,0.842,602.15,602.14,1.25344556]
[1740986001634,0.842,602.15,602.14,1.52246837]
[1740986002436,2.284,602.66,602.14,0.60117147]
[1740986002635,2.284,602.66,602.15,0.26902281]
[1740986003042,1.211,602.66,602.15,0.26902281]
[1740986004433,1.211,602.66,602.16,0.33213763]
[1740986004640,1.211,602.66,602.17,0.26902281]
[1740986004942,1.211,602.66,602.18,0.3321266]
[1740986005141,1.211,602.66,602.36,1.23783544]
[1740986005335,1.211,602.66,602.37,0.26902281]
[1740986007037,1.026,602.71,602.37,0.26902281]
[1740986007347,1.026,602.71,602.59,1.23783544]
[1740986007635,1.026,602.71,602.6,0.26902281]
[1740986008031,1.026,602.71,602.59,1.23783544]
[1740986008936,1.026,602.71,602.54,1.23783544]
[1740986009335,1.026,602.71,602.55,0.26898772]
[1740986009737,1.026,602.71,602.56,0.26897642]
[1740986009935,1.026,602.71,602.55,0.26897642]
[1740986011330,1.026,602.71,602.54,1.23783544]
[1740986011533,1.026,602.71,602.56,1.23783544]
[1740986011838,1.026,602.71,602.57,0.26893969]
[1740986014349,1.026,602.71,602.59,1.23635578]
[1740986014541,1.026,602.71,602.6,0.26893969]
[1740986017450,1.026,602.71,602.61,0.26893969]
[1740986017750,1.026,602.71,602.62,0.26893969]
[1740986017946,1.026,602.71,602.33,1.23635578]
[1740986018146,1.026,602.71,602.34,0.26900919]
[1740986019655,1.026,602.71,602.59,1.23957908]
[1740986019849,1.026,602.71,602.6,0.26903657]
[1740986022261,1.026,602.71,602.61,1.23957908]
[1740986022456,1.026,602.71,602.62,0.26903657]
[1740986023458,1.026,602.71,602.61,1.23957908]
[1740986024265,0.952,603.03,602.61,1.23957908]
[1740986024764,0.952,603.03,602.49,1.23957908]
[1740986025065,0.952,603.03,602.5,0.26903434]
[1740986025266,0.774,603.02,602.5,0.26903434]
[1740986026169,0.774,603.02,602.51,0.26903642]
[1740986026469,0.774,603.02,602.52,0.26903642]
[1740986026662,0.774,603.02,602.5,0.26903642]
[1740986026863,0.774,603.02,602.49,1.23957908]
[1740986027268,0.774,603.02,602.5,0.26905217]
[1740986027470,0.833,603.01,602.5,0.26905217]
[1740986027971,0.833,603.01,602.51,0.26905217]
[1740986028271,0.833,603.01,602.52,0.26905217]
[1740986028466,0.833,603.01,602.53,0.26905217]
[1740986028669,0.833,603.01,602.54,0.26905217]
[1740986028973,0.833,603.01,602.55,0.26905217]
[1740986029270,0.833,603.01,602.56,0.26905217]
[1740986029471,0.833,603.01,602.57,0.26905217]
[1740986029674,0.833,603.01,602.58,0.26905217]
[1740986029875,0.833,603.01,602.52,1.23957908]
[1740986033366,0.833,603.01,602.32,1.23957908]
[1740986033572,0.833,603.01,602.33,0.26908103]
[1740986033766,0.833,603.01,602.32,1.23957908]
[1740986033969,0.833,603.01,602.33,0.26910372]
[1740986035666,0.84,603.0,602.33,0.26910372]
[1740986036271,0.84,603.0,602.37,1.23957908]
[1740986036473,0.84,603.0,602.38,0.26910372]
[1740986038773,0.84,603.0,602.31,0.26910372]
[1740986038970,0.84,603.0,602.32,0.26910372]
[1740986039175,0.84,603.0,602.31,0.26910372]
[1740986039372,0.84,603.0,602.32,0.26910372]
[1740986039678,0.84,603.0,602.33,0.26910372]
[1740986039875,0.84,603.0,602.34,0.26910372]
[1740986040074,0.84,603.0,602.35,0.26910372]
[1740986040277,0.84,603.0,602.31,0.26910372]
[1740986040477,0.84,603.0,602.32,0.26910372]
[1740986040680,0.84,603.0,602.33,0.26910372]
[1740986040978,0.84,603.0,602.34,0.26911904]
[1740986041178,0.84,603.0,602.35,0.26911904]
[1740986041478,0.84,603.0,602.36,0.26911904]
[1740986041682,0.84,603.0,602.37,0.26911904]
[1740986041880,0.84,603.0,602.31,0.26911904]
[1740986042080,0.84,603.0,602.32,0.26911904]
[1740986042876,0.84,603.0,602.31,1.23957908]
[1740986043077,0.84,603.0,602.32,0.26914741]
[1740986044485,0.84,603.0,602.1,0.26914741]
[1740986044679,0.84,603.0,602.11,0.26914741]
[1740986044883,0.84,603.0,602.1,0.26914741]
[1740986045183,0.84,603.0,602.11,0.26914741]
[1740986045483,0.84,603.0,602.09,1.23957908]
[1740986045675,0.84,603.0,602.1,0.26904393]
[1740986046081,0.84,603.0,602.11,0.33216521]
[1740986046282,0.84,603.0,602.12,0.26904393]
[1740986046785,0.84,603.0,602.28,1.23957908]
[1740986046982,0.84,603.0,602.29,0.26904393]
[1740986047178,0.84,603.0,602.3,0.26904393]
[1740986047381,0.84,603.0,602.31,0.26904393]
[1740986047581,0.84,603.0,602.32,0.26904393]
[1740986047783,0.84,603.0,602.33,0.26904393]
[1740986047983,0.84,603.0,602.34,0.26904393]
[1740986048186,0.84,603.0,602.35,0.26904393]
[1740986048485,0.84,603.0,602.36,0.26904393]
[1740986048685,0.833,603.01,602.37,0.26904393]
[1740986048887,0.833,603.01,602.38,0.26904393]
[1740986049186,0.833,603.01,602.39,0.26904393]
[1740986049386,0.833,603.01,602.28,1.23957908]
[1740986049387,0.833,603.01,602.29,0.26904393]
[1740986049588,0.833,603.01,602.79,1.23957908]
[1740986051288,0.833,603.01,602.46,1.23957908]
[1740986051482,0.952,603.03,602.47,0.26906176]
[1740986052587,0.952,603.03,602.46,1.23957908]
[1740986052987,0.952,603.03,602.21,1.23957908]
[1740986053387,0.952,603.03,602.22,0.26911609]
[1740986053989,1.41840856,604.28,602.22,0.26911609]
[1740986054190,0.33102717,604.18,602.22,0.26911609]
[1740986054385,0.30474274,604.17,602.22,0.26911609]
[1740986054586,0.33104361,604.15,602.23,0.33209903]
[1740986054786,0.30474274,604.14,602.24,0.26911609]
[1740986054993,0.33106005,604.12,602.25,0.60120409]
[1740986055289,0.33106005,604.12,602.26,0.33208248]
[1740986055490,0.30465698,604.11,602.27,0.26897644]
[1740986055889,0.30465698,604.11,602.32,1.23957908]
[1740986056086,0.30465698,604.11,602.33,0.26897644]
[1740986056289,0.33107649,604.09,602.33,0.26897644]
[1740986056485,0.30465698,604.08,602.33,0.26897644]
[1740986056690,0.33109293,604.06,602.33,0.26897644]
[1740986056885,0.30465698,604.05,602.33,0.26897644]
[1740986057492,0.33110938,604.03,602.33,0.26897644]
[1740986057788,0.33110938,604.03,602.32,1.23957908]
[1740986057789,2.92944458,604.02,602.41,1.23957908]
[1740986057986,0.33112582,604.0,602.42,0.26897644]
[1740986058295,0.30465698,603.99,602.42,0.26897644]
[1740986058490,0.30465698,603.98,602.42,0.26897644]
[1740986058694,0.33112582,604.0,602.42,0.26897644]
[1740986058695,2.92910976,603.97,602.42,0.26897644]
[1740986058888,2.92910976,603.96,602.42,0.26897644]
[1740986059098,2.92910976,603.95,602.42,0.26897644]
[1740986059295,0.3311642,603.93,602.42,0.26897644]
[1740986059493,2.92910976,603.92,602.42,0.26897644]
[1740986059697,2.92910976,603.91,602.42,0.26897644]
[1740986059895,2.92910976,603.9,602.42,0.26897644]
[1740986060201,1.73152275,604.04,602.42,0.26897644]
[1740986060202,0.33119162,603.88,602.42,0.26897644]
[1740986060496,2.92910976,603.87,602.42,0.26897644]
[1740986060698,0.33119162,603.88,602.42,0.26897644]
[1740986060699,0.33120808,603.85,602.42,0.26897644]
[1740986060893,2.92910976,603.84,602.43,0.26897644]
[1740986061090,0.33122453,603.82,602.44,0.26897644]
[1740986061293,0.30465698,603.81,602.45,0.26897644]
[1740986061492,0.33124099,603.79,602.46,0.26897644]
[1740986061691,0.30465698,603.78,602.47,0.26897644]
[1740986061891,0.33125745,603.76,602.48,0.26910852]
[1740986062101,0.30479157,603.75,602.49,0.26910852]
[1740986062406,0.30479157,603.75,602.5,0.26910852]
[1740986062593,0.30479157,603.75,602.26,0.33208248]
[1740986062896,1.7319249,603.74,602.27,0.26910545]
[1740986063092,0.30479157,603.73,602.27,0.26910545]
[1740986063699,0.33128488,603.71,602.27,0.26910545]
[1740986063899,0.33128488,603.71,602.28,0.26910545]
[1740986064099,0.30470011,603.7,602.29,0.26910545]
[1740986064395,0.30470011,603.7,602.3,0.26910545]
[1740986064396,0.33130135,603.68,602.3,0.26910545]
[1740986064597,0.33130135,603.68,602.31,0.26910545]
[1740986064797,0.33130135,603.68,602.32,0.26910545]
[1740986065000,0.33130135,603.68,602.27,0.26910545]
[1740986065201,0.33130135,603.68,602.28,0.26910545]
[1740986065401,0.33130135,603.68,602.27,0.26910545]
[1740986065705,0.33130135,603.68,602.43,1.23957908]
[1740986065903,0.33130135,603.68,602.44,0.26910545]
[1740986066697,1.73170226,603.67,602.44,0.26910545]
[1740986066898,0.33131781,603.65,602.44,0.26910545]
[1740986067799,0.33131781,603.65,602.45,0.26910545]
[1740986068102,0.30479244,603.64,602.46,0.26910545]
[1740986068306,0.33133428,603.62,602.34,0.26911773]
[1740986068505,0.33133428,603.62,602.33,1.23957908]
[1740986068705,0.33133428,603.62,602.34,0.26911642]
[1740986069599,1.73219789,603.61,602.33,1.23957908]
[1740986069802,0.33135075,603.59,602.09,1.23957908]
[1740986070205,0.30483038,603.58,602.1,0.26914675]
[1740986070405,0.33136722,603.56,602.1,0.26914675]
[1740986070805,0.30480567,603.55,602.1,0.26914675]
[1740986071005,1.23980567,603.55,602.1,0.26914675]
[1740986071206,0.33138369,603.53,602.1,0.26914675]
[1740986071506,0.33138369,603.53,602.09,1.23957908]
[1740986071507,0.33138369,603.53,602.11,0.26914675]
[1740986071707,0.33138369,603.53,602.12,0.26914675]
[1740986071904,0.30478823,603.52,602.13,0.26914675]
[1740986072103,0.33138369,603.53,602.14,0.26914675]
[1740986072104,0.33139467,603.51,602.14,0.26914675]
[1740986072304,0.33139467,603.51,602.1,1.23957908]
[1740986072305,0.33139467,603.51,602.15,0.26914675]
[1740986072509,0.33139467,603.51,602.16,0.26914675]
[1740986072712,1.73223382,603.5,602.11,0.26914675]
[1740986073009,0.33140565,603.49,602.12,0.60130645]
[1740986073318,0.33140565,603.49,602.13,0.60130093]
[1740986073503,0.33140565,603.49,602.14,0.60129541]
[1740986073810,0.33140565,603.49,602.15,0.26914675]
[1740986074113,0.33140565,603.49,602.29,1.23957908]
[1740986074413,0.33140565,603.49,602.3,0.26914675]
[1740986075712,1.73207575,603.48,602.3,0.26914675]
[1740986075911,0.33141664,603.47,602.3,0.26914675]
[1740986076722,0.33141664,603.47,602.17,1.23957908]
[1740986077021,0.33141664,603.47,602.18,0.26914876]
[1740986079910,0.33141664,603.47,602.19,0.26918156]
[1740986080109,0.33141664,603.47,602.18,0.26918156]
[1740986080311,0.30488601,603.46,602.19,0.26918156]
[1740986080513,0.30488601,603.46,602.15,0.26918156]
[1740986080718,0.30488601,603.46,602.16,0.26918156]
[1740986080917,0.30488601,603.46,602.17,0.26918156]
[1740986081217,0.33143311,603.44,602.18,0.26918156]
[1740986081514,0.30488601,603.43,601.93,1.23957908]
[1740986081816,0.30488601,603.43,601.94,0.26929912]
[1740986082618,0.30488601,603.43,601.93,0.26929912]
[1740986083417,0.33144959,603.41,601.93,0.26929912]
[1740986083614,0.30488601,603.4,601.93,0.26929912]
[1740986083919,0.33146607,603.38,601.93,0.26929912]
[1740986084216,0.30488601,603.37,601.93,0.26929912]
[1740986085119,0.33148255,603.35,601.93,0.26929912]
[1740986085317,0.30488601,603.34,601.93,0.26929912]
[1740986085516,0.33149903,603.32,601.93,0.26929912]
[1740986085723,0.30488601,603.31,601.94,0.26929912]
[1740986085918,0.33151552,603.29,601.95,0.26929912]
[1740986086216,0.30488601,603.28,601.96,0.26929912]
[1740986086515,0.30488601,603.28,601.97,0.26929912]
[1740986086516,0.331532,603.26,601.97,0.26929912]
[1740986086716,0.331532,603.26,601.84,1.23957908]
[1740986086717,0.30488601,603.25,601.85,0.26929912]
[1740986086921,0.33154849,603.23,601.86,0.26929912]
[1740986087119,0.30488601,603.22,601.85,0.26929912]
[1740986087321,0.33156498,603.2,601.86,0.26929912]
[1740986087524,0.30488601,603.19,601.87,0.26929912]
[1740986087824,0.33158147,603.17,601.88,0.26929912]
[1740986088121,0.33158147,603.17,601.89,0.26929912]
[1740986088315,0.33158147,603.17,601.84,1.23957908]
[1740986088316,0.33158147,603.17,601.9,0.26929912]
[1740986088516,0.33158147,603.17,601.75,0.26929912]
[1740986088816,0.33158147,603.17,601.76,0.26929912]
[1740986089022,0.33158147,603.17,601.75,0.26929912]
[1740986089218,0.30502192,603.16,601.76,0.26929912]
[1740986089422,0.33158147,603.17,601.75,0.26929912]
[1740986089717,0.33158147,603.17,601.74,1.23957908]
[1740986089718,0.33158147,603.17,601.76,0.26929912]
[1740986089918,0.33158147,603.17,601.75,0.26929912]
[1740986090118,0.33158147,603.17,601.76,0.26929912]
[1740986090319,0.33158147,603.17,601.75,0.26929912]
[1740986090619,0.33158147,603.17,601.76,0.26929912]
[1740986090923,0.33158147,603.17,601.77,0.26929912]
[1740986091124,0.33158147,603.17,601.75,0.26929912]
[1740986091325,0.305017,603.16,601.76,0.26932976]
[1740986091529,0.952,603.16,601.5,0.26932976]
[1740986091720,0.33159797,603.14,601.77,0.26932976]
[1740986091926,0.33159797,603.14,601.78,0.26932976]
[1740986092125,0.33159797,603.14,601.51,0.26932976]
[1740986092330,0.33159797,603.14,601.5,0.33250207]
[1740986092331,0.33159797,603.14,601.52,0.26932976]
[1740986092525,0.33159797,603.14,601.51,0.26932976]
[1740986092720,0.30508471,603.13,601.52,0.26932976]
[1740986092926,0.30508471,603.13,601.53,0.26932976]
[1740986093225,0.30508471,603.13,601.54,0.26932976]
[1740986093427,0.30508471,603.13,601.55,0.26932976]
[1740986093725,0.33161446,603.11,601.56,0.26932976]
[1740986093933,0.33161446,603.11,601.51,0.26932976]
[1740986094221,0.33161446,603.11,601.52,0.26932976]
[1740986094422,0.33161446,603.11,601.51,0.26932976]
[1740986094629,0.33161446,603.11,601.52,0.26932976]
[1740986094830,0.33161446,603.11,601.51,0.26932976]
[1740986095032,0.30510122,603.1,601.52,0.26932976]
[1740986095228,0.30510122,603.1,601.51,0.26932976]
[1740986095229,0.33163096,603.08,601.51,0.26932976]
[1740986095532,0.30510122,603.07,601.51,0.26932976]
[1740986097024,0.33164745,603.05,601.51,0.26932976]
[1740986097222,0.30510122,603.04,601.51,0.26932976]
[1740986097628,0.33166395,603.02,601.51,0.26932976]
[1740986097824,0.30510122,603.01,601.51,0.26932976]
[1740986098026,0.33168045,602.99,601.51,0.26932976]
[1740986098429,0.30510122,602.98,601.51,0.26932976]
[1740986098928,0.33169696,602.96,601.51,0.26932976]
[1740986099127,0.30510122,602.95,601.51,0.26932976]
[1740986099525,0.33171346,602.93,601.51,0.26932976]
[1740986099822,0.33171346,602.93,601.5,0.33250207]
[1740986099823,0.30515397,602.92,601.52,0.26946437]
[1740986100129,1.40715397,602.92,601.53,0.26946437]
[1740986100332,1.102,602.92,601.51,0.26946437]
[1740986100530,1.102,602.92,601.52,0.26946437]
[1740986100728,1.102,602.92,601.51,0.26946437]
[1740986100928,1.102,602.92,601.52,0.26946437]
[1740986101130,1.102,602.92,601.53,0.2693684]
[1740986101330,1.102,602.92,601.51,0.2693684]
[1740986101632,1.102,602.92,601.52,0.2693684]
[1740986101829,1.102,602.92,601.51,0.2693684]
[1740986102032,1.102,602.92,601.52,0.2693684]
[1740986102223,1.102,602.92,601.53,0.2693684]
[1740986102526,1.102,602.92,601.54,0.2693684]
[1740986102731,1.102,602.92,601.51,0.2693684]
[1740986102932,0.33172997,602.9,601.5,0.33250207]
[1740986103126,0.33172997,602.9,601.51,0.26938729]
[1740986103632,1.192,602.89,601.51,0.26938729]
[1740986103832,0.33174647,602.87,601.51,0.26938729]
[1740986104232,0.33174647,602.87,601.52,0.26942157]
[1740986104428,0.33174647,602.87,601.51,0.26942157]
[1740986104730,0.33174647,602.87,601.52,0.26942157]
[1740986104934,0.33174647,602.87,601.53,0.26942157]
[1740986105233,0.33174647,602.87,601.54,0.26942157]
[1740986105427,0.33174647,602.87,601.51,0.26942157]
[1740986105835,0.33174647,602.87,601.52,0.26943092]
[1740986106032,0.33174647,602.87,601.53,0.26943092]
[1740986106233,0.33174647,602.87,601.54,0.26943092]
[1740986106534,0.33174647,602.87,601.55,0.26943092]
[1740986106734,0.33174647,602.87,601.56,0.26943092]
[1740986106931,0.33174647,602.87,601.57,0.26943092]
[1740986107134,0.33174647,602.87,601.51,0.26943092]
[1740986107335,0.33174647,602.87,601.5,0.33250207]
[1740986107536,0.33174647,602.87,601.51,0.26935584]
[1740986108938,0.33174647,602.87,601.52,0.33249102]
[1740986109138,0.33174647,602.87,601.53,0.26935584]
[1740986109332,0.33174647,602.87,601.54,0.26935584]
[1740986109636,0.33174647,602.87,601.55,0.26935584]
[1740986109837,0.33174647,602.87,601.56,0.26935584]
[1740986110136,0.33174647,602.87,601.57,0.26935584]
[1740986110332,0.33174647,602.87,601.58,0.26935584]
[1740986110539,0.33174647,602.87,601.52,0.33249102]
[1740986110731,0.33174647,602.87,601.53,0.26921274]
[1740986110935,0.33174647,602.87,601.55,0.33247444]
[1740986111132,0.33174647,602.87,601.56,0.26921274]
[1740986111332,0.33174647,602.87,601.58,0.33245786]
[1740986111536,0.33174647,602.87,601.59,0.26921274]
[1740986111736,0.33174647,602.87,601.6,0.60165954]
[1740986112040,0.741,602.86,601.61,0.60165402]
[1740986112239,0.33175748,602.85,601.62,0.26921274]
[1740986112436,0.33175748,602.85,601.63,0.26921274]
[1740986112640,0.33175748,602.85,601.61,0.33244128]
[1740986112641,0.33175748,602.85,601.64,0.26921274]
[1740986112841,0.33175748,602.85,601.65,0.26921274]
[1740986113042,0.33175748,602.85,601.62,0.26921274]
[1740986113242,0.33175748,602.85,601.63,0.60164297]
[1740986113542,0.33175748,602.85,601.64,0.26921274]
[1740986115436,0.33175748,602.85,601.63,0.33243023]
[1740986115637,0.33175748,602.85,601.64,0.26934104]
[1740986115638,1.052,602.84,601.64,0.26934104]
[1740986115844,1.052,602.84,601.64,1.50892012]
[1740986116037,1.052,602.84,601.65,0.26934104]
[1740986117844,1.052,602.84,601.76,1.23957908]
[1740986118039,1.052,602.84,601.77,0.60169393]
[1740986118238,1.052,602.84,601.78,0.26934104]
[1740986119647,1.052,602.84,601.79,0.33234184]
[1740986119847,1.052,602.84,601.82,1.23957908]
[1740986120047,1.052,602.84,601.83,0.26934104]
[1740986120346,1.052,602.84,601.84,0.26924058]
[1740986122549,1.052,602.84,601.85,0.26924058]
[1740986122952,1.052,602.84,601.86,0.26924058]
[1740986123147,1.052,602.84,601.87,0.26924058]
[1740986123341,1.052,602.84,601.88,0.26924058]
[1740986123746,1.052,602.84,601.77,1.23957908]
[1740986123747,1.052,602.84,601.9,0.3322811]
[1740986124043,1.052,602.84,601.91,0.26924058]
[1740986124342,1.052,602.84,601.93,0.33226454]
[1740986124542,1.052,602.84,601.94,0.26924058]
[1740986124947,1.052,602.84,601.95,0.26924058]
[1740986125248,1.052,602.84,601.96,0.26924058]
[1740986125442,1.052,602.84,601.97,0.26924058]
[1740986125646,1.052,602.84,601.98,0.26924058]
[1740986125846,1.052,602.84,601.93,0.33226454]
[1740986125847,1.052,602.84,602.0,1.23957908]
[1740986126046,1.052,602.84,602.01,0.26924058]
[1740986126250,1.08,602.83,602.02,0.26924058]
[1740986126447,1.08,602.83,602.03,0.26924058]
[1740986126648,1.08,602.83,602.04,0.26924058]
[1740986126948,1.08,602.83,602.0,1.23957908]
[1740986127147,1.08,602.83,602.01,0.26896431]
[1740986127345,1.08,602.83,602.02,0.26896431]
[1740986127747,1.08,602.83,602.03,0.26896431]
[1740986128045,1.08,602.83,602.04,0.26896431]
[1740986128249,1.08,602.83,602.05,0.60116263]
[1740986128549,1.08,602.83,602.1,1.23957908]
[1740986128751,1.08,602.83,602.11,0.26896431]
[1740986128950,1.08,602.83,602.12,0.26896431]
[1740986129143,1.08,602.83,602.1,1.23957908]
[1740986129144,1.08,602.83,602.13,0.26896431]
[1740986129445,1.08,602.83,602.14,0.26896431]
[1740986129650,1.08,602.83,602.11,0.26896431]
[1740986129850,1.08,602.83,602.12,0.26896431]
[1740986130051,1.08,602.83,602.12,0.3321597]
[1740986130355,1.08,602.83,602.13,0.26898343]
[1740986130650,1.08,602.83,602.14,0.33214866]
[1740986130845,1.08,602.83,602.15,0.26898343]
[1740986131047,1.08,602.83,602.16,0.33213763]
[1740986131249,1.08,602.83,602.17,0.26898343]
[1740986131649,1.08,602.83,602.18,0.3321266]
[1740986131850,1.08,602.83,602.19,0.26898343]
[1740986132050,1.08,602.83,602.2,0.33211557]
[1740986132246,1.08,602.83,602.21,0.26898343]
[1740986132449,1.08,602.83,602.22,0.33210454]
[1740986132649,1.08,602.83,602.23,0.26898343]
[1740986133449,1.08,602.83,602.22,0.33210454]
[1740986133650,1.08,602.83,602.23,0.26900871]
[1740986136858,1.08,602.83,602.24,0.26906801]
[1740986137054,1.08,602.83,602.25,0.26906801]
[1740986137254,1.08,602.83,602.26,0.26906801]
[1740986137453,1.08,602.83,602.27,0.26906801]
[1740986137654,1.08,602.83,602.28,0.26906801]
[1740986137851,1.08,602.83,602.29,0.60113395]
[1740986138055,1.08,602.83,602.3,0.26906801]
[1740986138556,1.08,602.83,602.31,0.26898045]
[1740986138751,1.08,602.83,602.32,0.3320494]
[1740986138956,1.08,602.83,602.33,0.26898045]
[1740986139857,1.08,602.83,602.34,0.33203838]
[1740986140053,1.08,602.83,602.35,0.26898045]
[1740986140456,1.08,602.83,602.36,0.33202735]
[1740986140652,1.08,602.83,602.37,0.26898045]
[1740986143261,1.08,602.83,602.36,0.33202735]
[1740986143458,1.08,602.83,602.37,0.26903036]
[1740986144454,0.913,602.89,602.37,0.26903036]
[1740986145363,0.913,602.89,602.38,0.33201633]
[1740986145559,0.913,602.89,602.39,0.26903036]
[1740986148154,0.913,602.89,602.38,0.33201633]
[1740986148359,0.913,602.89,602.39,0.26896335]
[1740986149758,0.913,602.89,602.39,0.60097417]
[1740986149964,0.913,602.89,602.4,0.26896335]
[1740986151463,0.913,602.89,602.41,0.26892973]
[1740986151660,0.913,602.89,602.4,0.26892973]
[1740986151864,0.913,602.89,602.41,0.60092953]
[1740986152067,0.913,602.89,602.42,0.6008848]
[1740986152366,0.913,602.89,602.43,0.60087929]
[1740986152666,0.913,602.89,602.44,0.60087378]